[Event "21th Rochefort Chess Festival - Masters"]
[Site "Rochefort, France"]
[Date "2023.02.11"]
[Round "1.2"]
[White "Astolfi, Frederic"]
[Black "Harsha Bharathakoti"]
[Result "0-1"]
[TimeControl "1h30 + [30'']"]
[WhiteElo "2091"]
[BlackElo "2599"]

1. d4 {[%clk 01:30:56]} {[%emt 00:00:02]} Nf6 {[%clk 01:30:19]} {[%emt
00:00:41]} 2. c4 {[%clk 01:31:16]} {[%emt 00:00:10]} e6 {[%clk 01:29:58]}
{[%emt 00:00:52]} 3. Nc3 {[%clk 01:31:15]} {[%emt 00:00:30]} Bb4 {[%clk
01:29:45]} {[%emt 00:00:44]} 4. f3 {[%clk 01:30:48]} {[%emt 00:00:57]} c5
{[%clk 01:28:24]} {[%emt 00:01:51]} 5. d5 {[%clk 01:30:00]} {[%emt 00:01:19]}
b5 {[%clk 01:27:11]} {[%emt 00:01:43]} 6. e4 {[%clk 01:28:38]} {[%emt
00:01:52]} d6 {[%clk 01:27:33]} {[%emt 00:00:08]} 7. cxb5 {[%clk 01:23:57]}
{[%emt 00:05:11]} exd5 {[%clk 01:17:18]} {[%emt 00:10:45]} 8. exd5 {[%clk
01:24:02]} {[%emt 00:00:25]} O-O {[%clk 01:08:42]} {[%emt 00:09:05]} 9. Nge2
{[%clk 00:51:57]} {[%emt 00:32:35]} Re8 {[%clk 01:05:10]} {[%emt 00:04:03]} 10.
Kf2 {[%clk 00:47:01]} {[%emt 00:05:25]} Nbd7 {[%clk 00:59:35]} {[%emt
00:06:05]} 11. a3 {[%clk 00:33:48]} {[%emt 00:13:43]} Ba5 {[%clk 00:59:20]}
{[%emt 00:00:44]} 12. g3 {[%clk 00:28:57]} {[%emt 00:05:21]} Ne5 {[%clk
00:55:30]} {[%emt 00:04:20]} 13. Bf4 {[%clk 00:22:58]} {[%emt 00:06:29]} Bf5
{[%clk 00:37:59]} {[%emt 00:18:01]} 14. Bxe5 {[%clk 00:22:03]} {[%emt
00:01:25]} Rxe5 {[%clk 00:38:06]} {[%emt 00:00:22]} 15. h4 {[%clk 00:18:03]}
{[%emt 00:04:31]} Qe7 {[%clk 00:23:48]} {[%emt 00:14:48]} 16. Qa4 {[%clk
00:15:43]} {[%emt 00:02:49]} Bb6 {[%clk 00:21:21]} {[%emt 00:02:58]} 17. Qc4
{[%clk 00:14:30]} {[%emt 00:01:42]} Bd3 {[%clk 00:21:02]} {[%emt 00:00:49]} 18.
Qa2 {[%clk 00:08:52]} {[%emt 00:06:08]} c4+ {[%clk 00:21:10]} {[%emt 00:00:22]}
19. Kg2 {[%clk 00:06:53]} {[%emt 00:02:29]} Bxe2 {[%clk 00:19:36]} {[%emt
00:02:04]} 20. Nxe2 {[%clk 00:04:57]} {[%emt 00:02:27]} Rxe2+ {[%clk 00:20:00]}
{[%emt 00:00:06]} 21. Kh3 {[%clk 00:04:58]} {[%emt 00:00:29]} Qd7+ {[%clk
00:19:59]} {[%emt 00:00:31]} 22. g4 {[%clk 00:05:20]} {[%emt 00:00:07]} Re3
{[%clk 00:20:06]} {[%emt 00:00:24]} 23. Kg2 {[%clk 00:03:17]} {[%emt 00:02:33]}
Rxf3 {[%clk 00:19:07]} {[%emt 00:01:30]} 24. Qxc4 {[%clk 00:03:38]} {[%emt
00:00:09]} Rf2+ {[%clk 00:19:28]} {[%emt 00:00:09]} 25. Kg3 {[%clk 00:03:56]}
{[%emt 00:00:11]} Re8 {[%clk 00:18:55]} {[%emt 00:01:03]} 0-1

[Event "21th Rochefort Chess Festival - Masters"]
[Site "Rochefort, France"]
[Date "2023.02.11"]
[Round "1.1"]
[White "Sasikiran, Krishnan"]
[Black "Milanovic, Dino"]
[Result "1-0"]
[TimeControl "1h30 + [30'']"]
[WhiteElo "2619"]
[BlackElo "2093"]

1. d4 {[%clk 01:30:56]} {[%emt 00:00:03]} d5 {[%clk 01:30:47]} {[%emt
00:00:14]} 2. c4 {[%clk 01:31:18]} {[%emt 00:00:08]} c6 {[%clk 01:31:06]}
{[%emt 00:00:12]} 3. Nf3 {[%clk 01:31:22]} {[%emt 00:00:25]} Nf6 {[%clk
01:31:29]} {[%emt 00:00:07]} 4. Nc3 {[%clk 01:31:29]} {[%emt 00:00:23]} dxc4
{[%clk 01:31:33]} {[%emt 00:00:26]} 5. a4 {[%clk 01:31:49]} {[%emt 00:00:10]}
Bf5 {[%clk 01:31:51]} {[%emt 00:00:12]} 6. Ne5 {[%clk 01:31:44]} {[%emt
00:00:35]} Nbd7 {[%clk 01:31:21]} {[%emt 00:01:00]} 7. Nxc4 {[%clk 01:32:01]}
{[%emt 00:00:12]} Nb6 {[%clk 01:30:22]} {[%emt 00:01:29]} 8. Ne5 {[%clk
01:31:01]} {[%emt 00:01:30]} a5 {[%clk 01:30:22]} {[%emt 00:00:31]} 9. g3
{[%clk 01:30:10]} {[%emt 00:01:21]} e6 {[%clk 01:23:17]} {[%emt 00:07:35]} 10.
Bg2 {[%clk 01:30:25]} {[%emt 00:00:15]} Nfd7 {[%clk 01:22:15]} {[%emt
00:01:33]} 11. e4 {[%clk 01:25:23]} {[%emt 00:05:30]} Bg6 {[%clk 01:22:10]}
{[%emt 00:00:35]} 12. Nxg6 {[%clk 01:22:37]} {[%emt 00:03:16]} hxg6 {[%clk
01:22:03]} {[%emt 00:00:37]} 13. e5 {[%clk 01:15:41]} {[%emt 00:07:27]} Nd5
{[%clk 01:05:09]} {[%emt 00:17:24]} 14. O-O {[%clk 01:02:27]} {[%emt 00:13:42]}
Nb4 {[%clk 00:58:56]} {[%emt 00:06:44]} 15. Qe2 {[%clk 00:54:20]} {[%emt
00:08:38]} Nb6 {[%clk 00:48:05]} {[%emt 00:11:20]} 16. Rd1 {[%clk 00:51:42]}
{[%emt 00:03:08]} N6d5 {[%clk 00:45:35]} {[%emt 00:03:01]} 17. Ne4 {[%clk
00:45:07]} {[%emt 00:07:05]} Qc7 {[%clk 00:37:26]} {[%emt 00:08:38]} 18. Bg5
{[%clk 00:33:27]} {[%emt 00:12:09]} Qb6 {[%clk 00:19:15]} {[%emt 00:18:42]} 19.
h4 {[%clk 00:26:23]} {[%emt 00:07:34]} Rc8 {[%clk 00:18:09]} {[%emt 00:01:37]}
20. Ra3 {[%clk 00:20:23]} {[%emt 00:06:30]} Rc7 {[%clk 00:15:49]} {[%emt
00:02:50]} 21. Bh3 {[%clk 00:16:18]} {[%emt 00:04:34]} Qa6 {[%clk 00:11:57]}
{[%emt 00:04:23]} 22. Qd2 {[%clk 00:11:47]} {[%emt 00:05:01]} Rd7 {[%clk
00:08:12]} {[%emt 00:04:16]} 23. Rf3 {[%clk 00:09:42]} {[%emt 00:02:33]} Nb6
{[%clk 00:04:57]} {[%emt 00:03:45]} 24. b3 {[%clk 00:07:10]} {[%emt 00:03:01]}
N4d5 {[%clk 00:03:10]} {[%emt 00:02:18]} 25. Qc2 {[%clk 00:06:01]} {[%emt
00:01:38]} Nb4 {[%clk 00:02:21]} {[%emt 00:01:20]} 26. Qb2 {[%clk 00:04:17]}
{[%emt 00:02:14]} c5 {[%clk 00:01:55]} {[%emt 00:00:57]} 27. Bf1 {[%clk
00:03:47]} {[%emt 00:00:59]} Qa7 {[%clk 00:01:36]} {[%emt 00:00:50]} 28. Bb5
{[%clk 00:02:01]} {[%emt 00:02:16]} Nc6 {[%clk 00:01:49]} {[%emt 00:00:17]} 29.
Rfd3 {[%clk 00:01:05]} {[%emt 00:01:25]} Nxd4 {[%clk 00:01:58]} {[%emt
00:00:21]} 30. Rxd4 {[%clk 00:00:56]} {[%emt 00:00:39]} cxd4 {[%clk 00:02:15]}
{[%emt 00:00:13]} 31. Qxd4 {[%clk 00:01:12]} {[%emt 00:00:13]} 1-0

[Event "21th Rochefort Chess Festival - Masters"]
[Site "Rochefort, France"]
[Date "2023.02.11"]
[Round "1.4"]
[White "Nagare Akhilesh"]
[Black "Nikolov, Momchil"]
[Result "0-1"]
[TimeControl "1h30 + [30'']"]
[WhiteElo "2086"]
[BlackElo "2480"]

1. c4 {[%clk 01:30:51]} {[%emt 00:00:08]} c5 {[%clk 01:30:39]} {[%emt
00:00:21]} 2. Nf3 {[%clk 01:31:11]} {[%emt 00:00:10]} Nf6 {[%clk 01:31:00]}
{[%emt 00:00:08]} 3. Nc3 {[%clk 01:31:25]} {[%emt 00:00:16]} d5 {[%clk
01:31:21]} {[%emt 00:00:09]} 4. cxd5 {[%clk 01:31:47]} {[%emt 00:00:09]} Nxd5
{[%clk 01:31:48]} {[%emt 00:00:03]} 5. e3 {[%clk 01:32:06]} {[%emt 00:00:12]}
e6 {[%clk 01:30:16]} {[%emt 00:02:01]} 6. Bc4 {[%clk 01:30:42]} {[%emt
00:01:54]} Nc6 {[%clk 01:28:56]} {[%emt 00:01:49]} 7. a3 {[%clk 01:25:19]}
{[%emt 00:05:53]} Be7 {[%clk 01:28:01]} {[%emt 00:01:24]} 8. O-O {[%clk
01:25:28]} {[%emt 00:00:22]} O-O {[%clk 01:28:09]} {[%emt 00:00:22]} 9. Qe2
{[%clk 01:25:17]} {[%emt 00:00:42]} Nb6 {[%clk 01:23:00]} {[%emt 00:05:38]} 10.
Ba2 {[%clk 01:21:50]} {[%emt 00:03:57]} e5 {[%clk 01:22:29]} {[%emt 00:01:01]}
11. h3 {[%clk 01:16:46]} {[%emt 00:05:34]} Qd6 {[%clk 01:11:43]} {[%emt
00:11:16]} 12. d3 {[%clk 01:07:27]} {[%emt 00:09:49]} Qg6 {[%clk 01:09:26]}
{[%emt 00:02:46]} 13. Kh2 {[%clk 01:04:37]} {[%emt 00:03:20]} Be6 {[%clk
01:06:31]} {[%emt 00:03:25]} 14. Bxe6 {[%clk 00:56:55]} {[%emt 00:08:13]} Qxe6
{[%clk 01:06:54]} {[%emt 00:00:06]} 15. e4 {[%clk 00:50:52]} {[%emt 00:06:34]}
Nd4 {[%clk 00:55:32]} {[%emt 00:11:53]} 16. Qd1 {[%clk 00:48:05]} {[%emt
00:03:17]} Rfd8 {[%clk 00:50:56]} {[%emt 00:05:05]} 17. Nxd4 {[%clk 00:44:53]}
{[%emt 00:03:42]} exd4 {[%clk 00:51:08]} {[%emt 00:00:18]} 18. Ne2 {[%clk
00:45:12]} {[%emt 00:00:12]} c4 {[%clk 00:51:21]} {[%emt 00:00:16]} 19. f4
{[%clk 00:45:11]} {[%emt 00:00:31]} Rac8 {[%clk 00:47:34]} {[%emt 00:04:17]} 20.
Ng3 {[%clk 00:43:50]} {[%emt 00:01:51]} cxd3 {[%clk 00:35:49]} {[%emt
00:12:16]} 21. f5 {[%clk 00:44:13]} {[%emt 00:00:07]} Qc6 {[%clk 00:32:47]}
{[%emt 00:03:32]} 22. Qg4 {[%clk 00:40:50]} {[%emt 00:03:53]} Nc4 {[%clk
00:29:18]} {[%emt 00:03:59]} 23. Nh5 {[%clk 00:13:12]} {[%emt 00:28:08]} g6
{[%clk 00:25:49]} {[%emt 00:03:59]} 24. Bh6 {[%clk 00:09:23]} {[%emt 00:04:19]}
Ne3 {[%clk 00:23:26]} {[%emt 00:02:52]} 25. Bxe3 {[%clk 00:09:49]} {[%emt
00:00:05]} dxe3 {[%clk 00:23:44]} {[%emt 00:00:12]} 26. e5 {[%clk 00:05:26]}
{[%emt 00:04:54]} e2 {[%clk 00:22:01]} {[%emt 00:02:12]} 27. e6 {[%clk
00:04:55]} {[%emt 00:01:01]} exf1=N+ {[%clk 00:20:39]} {[%emt 00:01:52]} 28.
Rxf1 {[%clk 00:05:21]} {[%emt 00:00:03]} Qc4 {[%clk 00:17:40]} {[%emt
00:03:29]} 29. Nf4 {[%clk 00:00:41]} {[%emt 00:05:10]} Bd6 {[%clk 00:14:42]}
{[%emt 00:03:28]} 30. e7 {[%clk 00:00:34]} {[%emt 00:00:38]} Bxe7 {[%clk
00:13:44]} {[%emt 00:01:28]} 31. fxg6 {[%clk 00:00:34]} {[%emt 00:00:30]} hxg6
{[%clk 00:13:43]} {[%emt 00:00:30]} 32. Rc1 {[%clk 00:00:35]} {[%emt 00:00:30]}
Qxc1 {[%clk 00:11:25]} {[%emt 00:02:48]} 33. Nxg6 {[%clk 00:00:59]} {[%emt
00:00:05]} Bd6+ {[%clk 00:10:23]} {[%emt 00:01:32]} 0-1

[Event "21th Rochefort Chess Festival - Masters"]
[Site "Rochefort, France"]
[Date "2023.02.11"]
[Round "1.3"]
[White "Ghosh, Diptayan"]
[Black "Greget, Mathias"]
[Result "1-0"]
[TimeControl "1h30 + [30'']"]
[WhiteElo "2553"]
[BlackElo "2090"]

1. Nf3 {[%clk 01:30:00]} {[%emt 00:01:00]} d5 {[%clk 01:30:25]} {[%emt
00:00:35]} 2. c4 {[%clk 01:29:20]} {[%emt 00:01:10]} e6 {[%clk 01:30:45]}
{[%emt 00:00:10]} 3. g3 {[%clk 01:29:31]} {[%emt 00:00:20]} Nf6 {[%clk
01:30:51]} {[%emt 00:00:23]} 4. Bg2 {[%clk 01:29:56]} {[%emt 00:00:05]} Be7
{[%clk 01:31:06]} {[%emt 00:00:14]} 5. O-O {[%clk 01:27:18]} {[%emt 00:03:08]}
O-O {[%clk 01:31:21]} {[%emt 00:00:15]} 6. d4 {[%clk 01:27:41]} {[%emt
00:00:08]} c6 {[%clk 01:31:17]} {[%emt 00:00:33]} 7. Qc2 {[%clk 01:27:41]}
{[%emt 00:00:31]} b6 {[%clk 01:31:40]} {[%emt 00:00:08]} 8. Rd1 {[%clk
01:27:33]} {[%emt 00:00:37]} Ba6 {[%clk 01:23:12]} {[%emt 00:08:57]} 9. b3
{[%clk 01:27:30]} {[%emt 00:00:34]} Nbd7 {[%clk 01:22:26]} {[%emt 00:01:15]} 10.
Nbd2 {[%clk 01:27:30]} {[%emt 00:00:30]} c5 {[%clk 01:07:54]} {[%emt 00:15:03]}
11. e4 {[%clk 01:17:40]} {[%emt 00:10:19]} cxd4 {[%clk 01:01:29]} {[%emt
00:06:55]} 12. exd5 {[%clk 01:09:48]} {[%emt 00:08:22]} exd5 {[%clk 01:01:13]}
{[%emt 00:00:46]} 13. Nxd4 {[%clk 01:09:38]} {[%emt 00:00:40]} Rc8 {[%clk
00:58:27]} {[%emt 00:03:15]} 14. Bb2 {[%clk 01:03:32]} {[%emt 00:06:38]} Re8
{[%clk 00:43:31]} {[%emt 00:15:26]} 15. Qf5 {[%clk 00:54:31]} {[%emt 00:09:31]}
dxc4 {[%clk 00:25:49]} {[%emt 00:18:13]} 16. Nc6 {[%clk 00:46:24]} {[%emt
00:08:36]} Qc7 {[%clk 00:26:10]} {[%emt 00:00:08]} 17. Nxc4 {[%clk 00:46:00]}
{[%emt 00:00:54]} Bxc4 {[%clk 00:23:42]} {[%emt 00:02:58]} 18. bxc4 {[%clk
00:45:50]} {[%emt 00:00:41]} Bf8 {[%clk 00:22:21]} {[%emt 00:01:50]} 19. Re1
{[%clk 00:41:26]} {[%emt 00:04:55]} Rxe1+ {[%clk 00:20:58]} {[%emt 00:01:54]}
20. Rxe1 {[%clk 00:41:52]} {[%emt 00:00:03]} Re8 {[%clk 00:21:20]} {[%emt
00:00:08]} 21. Rxe8 {[%clk 00:40:31]} {[%emt 00:01:51]} Nxe8 {[%clk 00:21:43]}
{[%emt 00:00:07]} 22. h4 {[%clk 00:40:53]} {[%emt 00:00:08]} Nc5 {[%clk
00:15:36]} {[%emt 00:06:37]} 23. Bd5 {[%clk 00:36:52]} {[%emt 00:04:31]} g6
{[%clk 00:14:47]} {[%emt 00:01:20]} 24. Qf3 {[%clk 00:34:52]} {[%emt 00:02:29]}
Bg7 {[%clk 00:14:56]} {[%emt 00:00:21]} 25. Bc1 {[%clk 00:33:20]} {[%emt
00:02:03]} Qd7 {[%clk 00:11:10]} {[%emt 00:04:15]} 26. h5 {[%clk 00:31:11]}
{[%emt 00:02:39]} Nc7 {[%clk 00:08:29]} {[%emt 00:03:10]} 27. h6 {[%clk
00:30:20]} {[%emt 00:01:22]} Ba1 {[%clk 00:04:55]} {[%emt 00:04:04]} 28. Bg5
{[%clk 00:26:41]} {[%emt 00:04:09]} Ne8 {[%clk 00:02:44]} {[%emt 00:02:40]} 29.
Ne7+ {[%clk 00:26:54]} {[%emt 00:00:17]} 1-0



[ePGN "0.1;DGT LiveChess/2.2.5"]

[Event "21th Rochefort Chess Festival - Masters"]
[Site "Rochefort, France"]
[Date "2023.02.12"]
[Round "2.5"]
[White "Deshpande, Aniruddha"]
[Black "Ghazarian, Kirk"]
[Result "0-1"]
[TimeControl "1h30 + [30'']"]
[WhiteElo "2204"]
[BlackElo "2471"]

1. d4 {[%clk 01:30:57]} {[%emt 00:00:01]} d5 {[%clk 01:26:41]} {[%emt
00:04:19]} 2. c4 {[%clk 01:30:13]} {[%emt 00:01:14]} c6 {[%clk 01:27:00]}
{[%emt 00:00:12]} 3. Nf3 {[%clk 01:29:55]} {[%emt 00:00:47]} Nf6 {[%clk
01:27:20]} {[%emt 00:00:10]} 4. Qb3 {[%clk 01:29:31]} {[%emt 00:00:55]} e6
{[%clk 01:26:59]} {[%emt 00:00:51]} 5. g3 {[%clk 01:27:44]} {[%emt 00:02:18]}
Be7 {[%clk 01:27:04]} {[%emt 00:00:24]} 6. Bg2 {[%clk 01:28:03]} {[%emt
00:00:11]} O-O {[%clk 01:27:10]} {[%emt 00:00:25]} 7. O-O {[%clk 01:27:45]}
{[%emt 00:00:47]} Nbd7 {[%clk 01:27:10]} {[%emt 00:00:29]} 8. Rd1 {[%clk
01:26:10]} {[%emt 00:02:06]} a5 {[%clk 01:26:54]} {[%emt 00:00:46]} 9. Nc3
{[%clk 01:19:52]} {[%emt 00:06:48]} a4 {[%clk 01:12:31]} {[%emt 00:14:54]} 10.
Nxa4 {[%clk 01:10:58]} {[%emt 00:09:23]} dxc4 {[%clk 01:12:41]} {[%emt
00:00:20]} 11. Qc2 {[%clk 01:11:21]} {[%emt 00:00:06]} Nd5 {[%clk 01:11:00]}
{[%emt 00:02:11]} 12. Nc3 {[%clk 01:01:20]} {[%emt 00:10:31]} b5 {[%clk
01:04:20]} {[%emt 00:07:09]} 13. Bf4 {[%clk 00:47:46]} {[%emt 00:14:05]} Bb7
{[%clk 00:55:09]} {[%emt 00:09:42]} 14. Ne4 {[%clk 00:46:58]} {[%emt 00:01:16]}
Nxf4 {[%clk 00:40:36]} {[%emt 00:15:04]} 15. gxf4 {[%clk 00:47:23]} {[%emt
00:00:04]} Qc7 {[%clk 00:40:40]} {[%emt 00:00:26]} 16. Ne5 {[%clk 00:44:30]}
{[%emt 00:03:23]} Nxe5 {[%clk 00:39:31]} {[%emt 00:01:39]} 17. dxe5 {[%clk
00:43:52]} {[%emt 00:01:08]} Rfd8 {[%clk 00:38:19]} {[%emt 00:01:42]} 18. a3
{[%clk 00:43:58]} {[%emt 00:00:24]} c5 {[%clk 00:35:47]} {[%emt 00:03:01]} 19.
Rxd8+ {[%clk 00:28:29]} {[%emt 00:15:58]} Rxd8 {[%clk 00:34:46]} {[%emt
00:01:33]} 20. a4 {[%clk 00:28:31]} {[%emt 00:00:27]} Qa5 {[%clk 00:19:43]}
{[%emt 00:15:34]} 21. Nf6+ {[%clk 00:24:27]} {[%emt 00:04:33]} gxf6 {[%clk
00:18:00]} {[%emt 00:02:14]} 22. Bxb7 {[%clk 00:24:47]} {[%emt 00:00:11]} bxa4
{[%clk 00:10:59]} {[%emt 00:07:31]} 23. Kh1 {[%clk 00:19:45]} {[%emt 00:05:31]}
f5 {[%clk 00:09:07]} {[%emt 00:02:22]} 24. Qc3 {[%clk 00:10:34]} {[%emt
00:09:41]} Qxc3 {[%clk 00:08:11]} {[%emt 00:01:27]} 25. bxc3 {[%clk 00:11:02]}
{[%emt 00:00:01]} Rd2 {[%clk 00:06:49]} {[%emt 00:01:51]} 26. Rxa4 {[%clk
00:04:05]} {[%emt 00:07:28]} Rxe2 {[%clk 00:07:12]} {[%emt 00:00:07]} 27. f3
{[%clk 00:04:13]} {[%emt 00:00:22]} Bh4 {[%clk 00:05:59]} {[%emt 00:01:43]} 28.
Bc6 {[%clk 00:02:40]} {[%emt 00:02:03]} Bf2 {[%clk 00:02:29]} {[%emt 00:04:00]}
29. Ra7 {[%clk 00:01:41]} {[%emt 00:01:29]} Kf8 {[%clk 00:02:11]} {[%emt
00:00:48]} 30. Ra8+ {[%clk 00:01:44]} {[%emt 00:00:27]} Kg7 {[%clk 00:02:39]}
{[%emt 00:00:01]} 31. Ra7 {[%clk 00:02:06]} {[%emt 00:00:08]} Be3 {[%clk
00:02:16]} {[%emt 00:00:53]} 32. Be8 {[%clk 00:02:03]} {[%emt 00:00:33]} Bxf4
{[%clk 00:02:37]} {[%emt 00:00:09]} 33. Bxf7 {[%clk 00:02:24]} {[%emt
00:00:08]} Bxe5 {[%clk 00:01:50]} {[%emt 00:01:18]} 34. Bxe6+ {[%clk 00:02:46]}
{[%emt 00:00:08]} Kf6 {[%clk 00:02:10]} {[%emt 00:00:10]} 35. Bxc4 {[%clk
00:02:52]} {[%emt 00:00:25]} Rxh2+ {[%clk 00:02:34]} {[%emt 00:00:06]} 36. Kg1
{[%clk 00:03:18]} {[%emt 00:00:03]} Rh4 {[%clk 00:02:19]} {[%emt 00:00:45]} 37.
Bg8 {[%clk 00:02:49]} {[%emt 00:00:59]} h5 {[%clk 00:01:17]} {[%emt 00:01:32]}
38. c4 {[%clk 00:03:00]} {[%emt 00:00:19]} Rd4 {[%clk 00:01:34]} {[%emt
00:00:12]} 39. Bd5 {[%clk 00:02:18]} {[%emt 00:01:13]} h4 {[%clk 00:01:48]}
{[%emt 00:00:16]} 40. Rf7+ {[%clk 00:01:07]} {[%emt 00:01:41]} Kg6 {[%clk
00:01:34]} {[%emt 00:00:44]} 41. Re7 {[%clk 00:20:51]} {[%emt 00:10:46]} Bf4
{[%clk 00:31:02]} {[%emt 00:01:02]} 42. Re1 {[%clk 00:10:43]} {[%emt 00:10:38]}
h3 {[%clk 00:30:54]} {[%emt 00:00:38]} 43. Kh1 {[%clk 00:10:43]} {[%emt
00:00:31]} Rd2 {[%clk 00:31:01]} {[%emt 00:00:23]} 44. Rg1+ {[%clk 00:10:40]}
{[%emt 00:00:33]} Kf6 {[%clk 00:29:28]} {[%emt 00:02:03]} 45. Rg8 {[%clk
00:10:23]} {[%emt 00:00:47]} h2 {[%clk 00:27:58]} {[%emt 00:02:01]} 46. Rf8+
{[%clk 00:06:21]} {[%emt 00:04:32]} Ke7 {[%clk 00:28:16]} {[%emt 00:00:12]} 0-1

[Event "21th Rochefort Chess Festival - Masters"]
[Site "Rochefort, France"]
[Date "2023.02.12"]
[Round "2.1"]
[White "Rakhmangulova, Anastasiya"]
[Black "Sasikiran, Krishnan"]
[Result "0-1"]
[TimeControl "1h30 + [30'']"]
[WhiteElo "2275"]
[BlackElo "2619"]

1. e4 {[%clk 01:28:57]} {[%emt 00:02:02]} e5 {[%clk 01:27:43]} {[%emt
00:03:18]} 2. Nf3 {[%clk 01:29:19]} {[%emt 00:00:09]} Nc6 {[%clk 01:28:06]}
{[%emt 00:00:07]} 3. d4 {[%clk 01:29:42]} {[%emt 00:00:07]} exd4 {[%clk
01:28:22]} {[%emt 00:00:14]} 4. Nxd4 {[%clk 01:30:08]} {[%emt 00:00:05]} Bc5
{[%clk 01:25:15]} {[%emt 00:03:38]} 5. Nb3 {[%clk 01:30:24]} {[%emt 00:00:13]}
Bb6 {[%clk 01:24:16]} {[%emt 00:01:29]} 6. Nc3 {[%clk 01:30:46]} {[%emt
00:00:08]} Nf6 {[%clk 01:22:40]} {[%emt 00:02:07]} 7. Qe2 {[%clk 01:31:08]}
{[%emt 00:00:08]} d6 {[%clk 01:20:28]} {[%emt 00:02:42]} 8. Be3 {[%clk
01:30:48]} {[%emt 00:00:49]} Be6 {[%clk 01:14:26]} {[%emt 00:06:32]} 9. O-O-O
{[%clk 01:15:35]} {[%emt 00:15:43]} Qe7 {[%clk 01:04:09]} {[%emt 00:10:47]} 10.
f3 {[%clk 01:04:11]} {[%emt 00:11:55]} O-O-O {[%clk 00:59:15]} {[%emt
00:05:23]} 11. Bxb6 {[%clk 01:01:17]} {[%emt 00:03:25]} axb6 {[%clk 00:56:20]}
{[%emt 00:03:26]} 12. Nd4 {[%clk 00:58:55]} {[%emt 00:02:51]} Kb8 {[%clk
00:42:10]} {[%emt 00:14:40]} 13. Nxe6 {[%clk 00:36:42]} {[%emt 00:22:43]} fxe6
{[%clk 00:36:47]} {[%emt 00:05:53]} 14. Qf2 {[%clk 00:35:17]} {[%emt 00:01:55]}
d5 {[%clk 00:29:18]} {[%emt 00:07:59]} 15. Bd3 {[%clk 00:26:44]} {[%emt
00:09:03]} d4 {[%clk 00:27:32]} {[%emt 00:02:16]} 16. Ne2 {[%clk 00:26:03]}
{[%emt 00:01:11]} e5 {[%clk 00:26:58]} {[%emt 00:01:05]} 17. Qh4 {[%clk
00:22:32]} {[%emt 00:04:01]} Nb4 {[%clk 00:17:02]} {[%emt 00:10:26]} 18. a3
{[%clk 00:20:03]} {[%emt 00:02:59]} Nxd3+ {[%clk 00:17:13]} {[%emt 00:00:18]}
19. cxd3 {[%clk 00:17:38]} {[%emt 00:02:56]} Qe6 {[%clk 00:15:45]} {[%emt
00:01:58]} 20. Kb1 {[%clk 00:17:46]} {[%emt 00:00:22]} Nd7 {[%clk 00:14:07]}
{[%emt 00:02:08]} 21. f4 {[%clk 00:16:16]} {[%emt 00:02:00]} Nc5 {[%clk
00:10:55]} {[%emt 00:03:43]} 22. fxe5 {[%clk 00:14:36]} {[%emt 00:02:10]} Qxe5
{[%clk 00:09:36]} {[%emt 00:01:48]} 23. Qg3 {[%clk 00:13:18]} {[%emt 00:01:47]}
Qxg3 {[%clk 00:06:00]} {[%emt 00:04:07]} 24. Nxg3 {[%clk 00:13:31]} {[%emt
00:00:17]} g6 {[%clk 00:05:24]} {[%emt 00:01:06]} 25. Rhf1 {[%clk 00:13:11]}
{[%emt 00:00:49]} Nd7 {[%clk 00:05:09]} {[%emt 00:00:46]} 26. Rf7 {[%clk
00:08:07]} {[%emt 00:05:33]} Ne5 {[%clk 00:04:50]} {[%emt 00:00:49]} 27. Re7
{[%clk 00:08:31]} {[%emt 00:00:05]} Rde8 {[%clk 00:04:27]} {[%emt 00:00:53]} 28.
Rxe8+ {[%clk 00:08:55]} {[%emt 00:00:06]} Rxe8 {[%clk 00:04:55]} {[%emt
00:00:02]} 29. h3 {[%clk 00:07:19]} {[%emt 00:02:06]} c5 {[%clk 00:04:02]}
{[%emt 00:01:23]} 30. a4 {[%clk 00:04:26]} {[%emt 00:03:23]} h5 {[%clk
00:03:02]} {[%emt 00:01:30]} 31. h4 {[%clk 00:00:53]} {[%emt 00:04:04]} Rf8
{[%clk 00:02:45]} {[%emt 00:00:47]} 32. Kc2 {[%clk 00:00:37]} {[%emt 00:00:46]}
Rf2+ {[%clk 00:01:44]} {[%emt 00:01:30]} 33. Rd2 {[%clk 00:01:03]} {[%emt
00:00:04]} Rf4 {[%clk 00:02:11]} {[%emt 00:00:03]} 34. Ne2 {[%clk 00:01:11]}
{[%emt 00:00:21]} Rxh4 {[%clk 00:01:54]} {[%emt 00:00:48]} 35. g3 {[%clk
00:01:03]} {[%emt 00:00:38]} Rg4 {[%clk 00:01:12]} {[%emt 00:01:12]} 36. b3
{[%clk 00:00:47]} {[%emt 00:00:46]} h4 {[%clk 00:01:09]} {[%emt 00:00:33]} 37.
gxh4 {[%clk 00:01:12]} {[%emt 00:00:06]} Rxh4 {[%clk 00:01:34]} {[%emt
00:00:04]} 38. Nc1 {[%clk 00:01:28]} {[%emt 00:00:14]} Ng4 {[%clk 00:01:07]}
{[%emt 00:00:56]} 39. b4 {[%clk 00:01:22]} {[%emt 00:00:36]} Kc7 {[%clk
00:00:53]} {[%emt 00:00:45]} 40. Kb3 {[%clk 00:01:35]} {[%emt 00:00:18]} Rh1
{[%clk 00:00:45]} {[%emt 00:00:37]} 41. Na2 {[%clk 00:29:55]} {[%emt 00:02:11]}
Ne5 {[%clk 00:23:34]} {[%emt 00:07:40]} 42. Kc2 {[%clk 00:27:18]} {[%emt
00:03:07]} g5 {[%clk 00:18:50]} {[%emt 00:05:14]} 0-1